{"text_format":"1","workbook":"xlsx","n_sheets":6,"sheets":["Fallecimientos Covid-19","TD_Países","time_series_covid19_deaths_glob","Listado_Países","Códigos_Países","Idiomas"],"not_rendered":{"charts":1,"images":3,"macros":1,"external_links":0,"defined_names":20,"comments":0,"pivot_tables":3},"unopened":[],"bounds":{"document_bytes":16777216,"sheet_cells":100000,"rows_first":2000,"rows_last":500,"rows_between":2000,"halvings":0,"cell_chars":16384,"cell_head_chars":4096},"cells_cut":0,"cells_raw":0,"read":"whole","date_system":"1900"}

{"sheet":"Fallecimientos Covid-19","index":0,"n_rows":33,"n_cols":16,"rows_kept":33,"cut":false,"hidden":false,"merged":[[9,12,9,14],[22,12,22,18],[32,2,32,10],[27,2,27,10],[26,2,26,8],[28,2,28,10]]}
[]
[null,false,"∑",{"$f":"IF(Estado_Refrescar,Idiomas!$A$20,TD_Países!$B$2)","v":"← Clic icono del Covid-19 para descargar datos"}]
[]
[]
[]
[]
[]
[]
[]
[null,null,null,null,null,null,null,null,null,null,null,null,"EU - UE",null,null,{"$f":"Idiomas!A24","v":"← Seleccionar continente o lista"}]
[]
[]
[]
[]
[]
[]
[]
[]
[]
[]
[]
[]
[null,{"$f":"Idiomas!$A$14","v":"Idioma:"},"Español",null,null,{"$f":"Idiomas!$A$23","v":"Período en días:"},1,null,null,{"$f":"Idiomas!$A$22","v":"Velocidad de carrera:"},9,null,{"$f":"Idiomas!$A$12","v":"INSTRUCCIONES"}]
[null,null,null,null,null,null,null,null,null,null,null,null,{"$f":"Idiomas!A2","v":"1) Clic icono Covid-19 para descargar datos y refrescar todo."}]
[null,null,null,null,null,null,null,null,null,null,null,null,{"$f":"Idiomas!A3","v":"2) Seleccionar una fecha en la Escala de Tiempo."}]
[null,{"$f":"Idiomas!$A$15","v":"AUTOR:"},"Pedro Wave",null,null,null,null,null,null,null,null,null,{"$f":"Idiomas!A4","v":"3) Elegir todos o algunos Países en la segmentación izquierda."}]
[null,"BLOG:","Carreras de Barras por Covid-19 en Excel v2 | #ExcelPedroWave",null,null,null,null,null,null,null,null,null,{"$f":"Idiomas!A5","v":"4) Seleccionar Países Rojos en la segmentación derecha."}]
[null,"COPYRIGHT:","Creative Commons — Atribución-NoComercial-CompartirIgual 3.0 No portada — CC BY-NC-SA 3.0",null,null,null,null,null,null,null,null,null,{"$f":"Idiomas!A6","v":"5) Clic en el Gráfico de Barras para Arrancar/Parar la Carrera."}]
[null,{"$f":"Idiomas!$A$16","v":"DATOS:"},"COVID-19/csse_covid_19_data/csse_covid_19_time_series at master · CSSEGISandData/COVID-19 · GitHub",null,null,null,null,null,null,null,null,null,{"$f":"Idiomas!A7","v":"6) Clic en el título del gráfico para ver datos de la última fecha."}]
[null,null,null,null,null,null,null,null,null,null,null,null,{"$f":"Idiomas!A8","v":"6) Clic en el título del gráfico para ver datos de la última fecha."}]
[null,null,null,null,null,null,null,null,null,null,null,null,{"$f":"Idiomas!A9","v":"6) Clic en el título del gráfico para ver datos de la última fecha."}]
[null,null,null,null,null,null,null,null,null,null,null,null,{"$f":"Idiomas!A10","v":"6) Clic en el título del gráfico para ver datos de la última fecha."}]
[null,"JHU Lancet:","An interactive web-based dashboard to track COVID-19 in real time - The Lancet Infectious Diseases",null,null,null,null,null,null,null,null,null,{"$f":"Idiomas!A11","v":"7) Clic en la celda C2 para cambiar Acumulado ∑ o Diario #"}]

{"sheet":"TD_Países","index":1,"n_rows":22,"n_cols":10,"rows_kept":22,"cut":false,"hidden":false,"merged":[[1,1,1,4]]}
[]
[null,{"$f":"IF(Fecha_Gráfico=0,Idiomas!$A$21,\nTEXT(GETPIVOTDATA(IF(Tipo_Acumulado=\"#\",\"Daily\",\"Accumulated\"),$F$21),\"#.###\") & \" \"& Idiomas!$A$13 & \" \"&\nIF(Fecha_Gráfico=0,\"\",TEXT(Fecha_Gráfico,\"[$-x-sysdate]\")))","v":"← Clic icono del Covid-19 para descargar datos"}]
[]
[null,"Minimum Date - Fecha Mínima: ",{"$f":"MIN(time_series_covid19_deaths_global[Date])","v":"00:00:00"}]
[null,"Maximum Date - Fecha Máxima: ",{"$f":"MAX(time_series_covid19_deaths_global[Date])","v":"00:00:00"}]
[]
[null,"Country - País","Value",null,null,null,null,null,null,"Countries Red - Países Rojos"]
[null,{"$f":"IF(Tabla_TOP10_Países[[#This Row],[Value]]=0,\"\",MATCH(B32,$F$23:$F$300,0) & \"-\" & B32)","v":""},{"$f":"IF(Tipo_Acumulado=\"#\",D32,C32)","v":0},null,null,null,null,null,null,{"$f":"IF(IFERROR(MATCH($B32,$J$22:$J$300,0),0)>0,255,0)","v":0}]
[null,{"$f":"IF(Tabla_TOP10_Países[[#This Row],[Value]]=0,\"\",MATCH(B31,$F$23:$F$300,0) & \"-\" & B31)","v":""},{"$f":"IF(Tipo_Acumulado=\"#\",D31,C31)","v":0},null,null,null,null,null,null,{"$f":"IF(IFERROR(MATCH($B31,$J$22:$J$300,0),0)>0,255,0)","v":0}]
[null,{"$f":"IF(Tabla_TOP10_Países[[#This Row],[Value]]=0,\"\",MATCH(B30,$F$23:$F$300,0) & \"-\" & B30)","v":""},{"$f":"IF(Tipo_Acumulado=\"#\",D30,C30)","v":0},null,null,null,null,null,null,{"$f":"IF(IFERROR(MATCH($B30,$J$22:$J$300,0),0)>0,255,0)","v":0}]
[null,{"$f":"IF(Tabla_TOP10_Países[[#This Row],[Value]]=0,\"\",MATCH(B29,$F$23:$F$300,0) & \"-\" & B29)","v":""},{"$f":"IF(Tipo_Acumulado=\"#\",D29,C29)","v":0},null,null,null,null,null,null,{"$f":"IF(IFERROR(MATCH($B29,$J$22:$J$300,0),0)>0,255,0)","v":0}]
[null,{"$f":"IF(Tabla_TOP10_Países[[#This Row],[Value]]=0,\"\",MATCH(B28,$F$23:$F$300,0) & \"-\" & B28)","v":""},{"$f":"IF(Tipo_Acumulado=\"#\",D28,C28)","v":0},null,null,null,null,null,null,{"$f":"IF(IFERROR(MATCH($B28,$J$22:$J$300,0),0)>0,255,0)","v":0}]
[null,{"$f":"IF(Tabla_TOP10_Países[[#This Row],[Value]]=0,\"\",MATCH(B27,$F$23:$F$300,0) & \"-\" & B27)","v":""},{"$f":"IF(Tipo_Acumulado=\"#\",D27,C27)","v":0},null,null,null,null,null,null,{"$f":"IF(IFERROR(MATCH($B27,$J$22:$J$300,0),0)>0,255,0)","v":0}]
[null,{"$f":"IF(Tabla_TOP10_Países[[#This Row],[Value]]=0,\"\",MATCH(B26,$F$23:$F$300,0) & \"-\" & B26)","v":""},{"$f":"IF(Tipo_Acumulado=\"#\",D26,C26)","v":0},null,null,null,null,null,null,{"$f":"IF(IFERROR(MATCH($B26,$J$22:$J$300,0),0)>0,255,0)","v":0}]
[null,{"$f":"IF(Tabla_TOP10_Países[[#This Row],[Value]]=0,\"\",MATCH(B25,$F$23:$F$300,0) & \"-\" & B25)","v":""},{"$f":"IF(Tipo_Acumulado=\"#\",D25,C25)","v":0},null,null,null,null,null,null,{"$f":"IF(IFERROR(MATCH($B25,$J$22:$J$300,0),0)>0,255,0)","v":0}]
[null,{"$f":"IF(Tabla_TOP10_Países[[#This Row],[Value]]=0,\"\",MATCH(B24,$F$23:$F$300,0) & \"-\" & B24)","v":""},{"$f":"IF(Tipo_Acumulado=\"#\",D24,C24)","v":0},null,null,null,null,null,null,{"$f":"IF(IFERROR(MATCH($B24,$J$22:$J$300,0),0)>0,255,0)","v":0}]
[null,{"$f":"IF(Tabla_TOP10_Países[[#This Row],[Value]]=0,\"\",MATCH(B23,$F$23:$F$300,0) & \"-\" & B23)","v":""},{"$f":"IF(Tipo_Acumulado=\"#\",D23,C23)","v":0},null,null,null,null,null,null,{"$f":"IF(IFERROR(MATCH($B23,$J$22:$J$300,0),0)>0,255,0)","v":0}]
[null,{"$f":"\"Max. \" & IF(TD_Países!$B$22=0,\"\",TEXT(TD_Países!$B$22,\"[$-x-sysdate]\"))","v":"Max. "},{"$f":"SUBTOTAL(104,Tabla_TOP10_Países[Value])","v":0}]
[]
[]
[null,"Country - País","Accumulated","Daily",null,"Country - País","Accumulated","Daily",null,"Country - País"]
[null,null,null,null,null,"Total general",null,null,null," "]

{"sheet":"time_series_covid19_deaths_glob","index":2,"n_rows":1,"n_cols":4,"rows_kept":1,"cut":false,"hidden":false,"merged":[]}
["Country","Date","Value","Increment"]

{"sheet":"Listado_Países","index":3,"n_rows":55,"n_cols":6,"rows_kept":55,"cut":false,"hidden":false,"merged":[]}
["EU - UE","Latin America","Asia","Mediterranean","Africa","My List - Mi Lista"]
["Austria","Argentina","Afghanistan","Albania","Algeria","Colombia"]
["Belgium","Bolivia","Armenia","Algeria","Angola","Croatia"]
["Bulgaria","Brazil","Azerbaijan","Bosnia and Herzegovina","Benin","France"]
["Croatia","Chile","Bahrain","Croatia","Botswana","Greece"]
["Cyprus","Colombia","Bangladesh","Cyprus","Burkina Faso","Italy"]
["Czechia","Costa Rica","Bhutan","Egypt","Burundi","Mexico"]
["Denmark","Cuba","Brunei","France","Cabo Verde","Portugal"]
["Estonia","Ecuador","Burma","Greece","Cameroon","Russia"]
["Finland","El Salvador","Cambodia","Israel","Central African Republic","Spain"]
["France","Guatemala","China","Italy","Chad","Venezuela"]
["Germany","Haiti","Cyprus","Lebanon","Comoros"]
["Greece","Honduras","Georgia","Libya","Congo (Brazzaville)"]
["Hungary","Mexico","India","Malta","Congo (Kinshasa)"]
["Ireland","Nicaragua","Indonesia","Monaco","Cote d'Ivoire"]
["Italy","Panama","Iran","Montenegro","Djibouti"]
["Latvia","Paraguay","Iraq","Morocco","Egypt"]
["Lithuania","Peru","Israel","Slovenia","Equatorial Guinea"]
["Luxembourg","Dominican Republic","Japan","Spain","Eritrea"]
["Malta","Uruguay","Jordan","Syria","Eswatini"]
["Netherlands","Venezuela","Kazakhstan","Tunisia","Ethiopia"]
["Poland",null,"Korea, North","Turkey","Gabon"]
["Portugal",null,"Korea, South",null,"Gambia"]
["Romania",null,"Kuwait",null,"Ghana"]
["Slovakia",null,"Kyrgyzstan",null,"Guinea"]
["Slovenia",null,"Laos",null,"Guinea-Bissau"]
["Spain",null,"Lebanon",null,"Kenya"]
["Sweden",null,"Malaysia",null,"Lesotho"]
[null,null,"Maldives",null,"Liberia"]
[null,null,"Mongolia",null,"Libya"]
[null,null,"Nepal",null,"Madagascar"]
[null,null,"Oman",null,"Malawi"]
[null,null,"Pakistan",null,"Mali"]
[null,null,"Philippines",null,"Mauritania"]
[null,null,"Russia",null,"Mauritius"]
[null,null,"Saudi Arabia",null,"Morocco"]
[null,null,"Singapore",null,"Mozambique"]
[null,null,"Sri Lanka",null,"Namibia"]
[null,null,"Syria",null,"Niger"]
[null,null,"Tajikistan",null,"Nigeria"]
[null,null,"Taste",null,"Rwanda"]
[null,null,"Thailand",null,"Sao Tome and Principe"]
[null,null,"Timor-Leste",null,"Senegal"]
[null,null,"Turkey",null,"Seychelles"]
[null,null,"Turkmenistan",null,"Sierra Leone"]
[null,null,"United Arab Emirates",null,"Somalia"]
[null,null,"Uzbekistan",null,"South Africa"]
[null,null,"Vietnam",null,"South Sudan"]
[null,null,"Yemen",null,"Sudan"]
[null,null,null,null,"Tanzania"]
[null,null,null,null,"Togo"]
[null,null,null,null,"Tunisia"]
[null,null,null,null,"Uganda"]
[null,null,null,null,"Zambia"]
[null,null,null,null,"Zimbabwe"]

{"sheet":"Códigos_Países","index":4,"n_rows":249,"n_cols":4,"rows_kept":249,"cut":false,"hidden":false,"merged":[]}
["MsoLanguageID","Language","Country Code","Country Name"]
[null,null,93,"Afghanistan"]
[null,null,355,"Albania"]
[null,null,213,"Algeria"]
[null,null,"1-684","American Samoa"]
[null,null,376,"Andorra"]
[null,null,244,"Angola"]
[null,null,"1-264","Anguilla"]
[null,null,672,"Antarctica"]
[null,null,"1-268","Antigua and Barbuda"]
[null,null,54,"Argentina"]
[null,null,374,"Armenia"]
[null,null,297,"Aruba"]
[3081,"English",61,"Australia"]
[null,null,43,"Austria"]
[null,null,994,"Azerbaijan"]
[null,null,"1-242","Bahamas"]
[null,null,973,"Bahrain"]
[null,null,880,"Bangladesh"]
[null,null,"1-246","Barbados"]
[null,null,375,"Belarus"]
[null,null,32,"Belgium"]
[null,null,501,"Belize"]
[null,null,229,"Benin"]
[null,null,"1-441","Bermuda"]
[null,null,975,"Bhutan"]
[null,null,591,"Bolivia"]
[null,null,387,"Bosnia and Herzegovina"]
[null,null,267,"Botswana"]
[null,null,55,"Brazil"]
[null,null,246,"British Indian Ocean Territory"]
[null,null,"1-284","British Virgin Islands"]
[null,null,673,"Brunei"]
[null,null,359,"Bulgaria"]
[null,null,226,"Burkina Faso"]
[null,null,95,"Burma"]
[null,null,257,"Burundi"]
[null,null,238,"Cabo Verde"]
[null,null,855,"Cambodia"]
[null,null,237,"Cameroon"]
[3084,"French",1,"Canada"]
[4105,"English",1,"Canada"]
[null,null,"1-345","Cayman Islands"]
[null,null,236,"Central African Republic"]
[null,null,235,"Chad"]
[null,null,56,"Chile"]
[null,null,86,"China"]
[null,null,61,"Christmas Island"]
[null,null,61,"Cocos Islands"]
[null,null,57,"Colombia"]
[null,null,269,"Comoros"]
[null,null,242,"Congo (Brazzaville)"]
[null,null,243,"Congo (Kinshasa)"]
[null,null,682,"Cook Islands"]
[null,null,506,"Costa Rica"]
[null,null,225,"Cote d'Ivoire"]
[null,null,385,"Croatia"]
[null,null,53,"Cuba"]
[null,null,599,"Curacao"]
[null,null,357,"Cyprus"]
[null,null,420,"Czechia"]
[null,null,45,"Denmark"]
[null,null,null,"Diamond Princess (ship)"]
[null,null,253,"Djibouti"]
[null,null,"1-767","Dominica"]
[7178,"Español","1-809","Dominican Republic"]
[7178,"Español","1-829","Dominican Republic"]
[7178,"Español","1-849","Dominican Republic"]
[null,null,593,"Ecuador"]
[null,null,20,"Egypt"]
[null,null,503,"El Salvador"]
[null,null,240,"Equatorial Guinea"]
[null,null,291,"Eritrea"]
[null,null,372,"Estonia"]
[null,null,268,"Eswatini"]
[null,null,251,"Ethiopia"]
[null,null,500,"Falkland Islands"]
[null,null,298,"Faroe Islands"]
[null,null,679,"Fiji"]
[null,null,358,"Finland"]
[null,null,33,"France"]
[null,null,689,"French Polynesia"]
[null,null,241,"Gabon"]
[null,null,220,"Gambia"]
[null,null,995,"Georgia"]
[null,null,49,"Germany"]
[null,null,233,"Ghana"]
[null,null,350,"Gibraltar"]
[null,null,30,"Greece"]
[null,null,299,"Greenland"]
[null,null,"1-473","Grenada"]
[null,null,"1-671","Guam"]
[null,null,502,"Guatemala"]
[null,null,"44-1481","Guernsey"]
[null,null,224,"Guinea"]
[null,null,245,"Guinea-Bissau"]
[null,null,592,"Guyana"]
[null,null,509,"Haiti"]
[null,null,379,"Holy See"]
[null,null,504,"Honduras"]
[null,null,852,"Hong Kong"]
[null,null,36,"Hungary"]
[null,null,354,"Iceland"]
[null,null,91,"India"]
[null,null,62,"Indonesia"]
[null,null,98,"Iran"]
[null,null,964,"Iraq"]
[null,null,353,"Ireland"]
[null,null,"44-1624","Isle of Man"]
[null,null,972,"Israel"]
[null,null,39,"Italy"]
[8201,"English","1-876","Jamaica"]
[null,null,81,"Japan"]
[null,null,"44-1534","Jersey"]
[null,null,962,"Jordan"]
[1087,"Kazakh",7,"Kazakhstan"]
[null,null,254,"Kenya"]
[null,null,686,"Kiribati"]
[null,null,82,"Korea, South"]
[null,null,383,"Kosovo"]
[null,null,965,"Kuwait"]
[null,null,996,"Kyrgyzstan"]
[null,null,856,"Laos"]
[null,null,371,"Latvia"]
[null,null,961,"Lebanon"]
[null,null,266,"Lesotho"]
[null,null,231,"Liberia"]
[null,null,218,"Libya"]
[null,null,423,"Liechtenstein"]
[null,null,370,"Lithuania"]
[null,null,352,"Luxembourg"]
[null,null,853,"Macau"]
[null,null,261,"Madagascar"]
[null,null,265,"Malawi"]
[null,null,60,"Malaysia"]
[null,null,960,"Maldives"]
[null,null,223,"Mali"]
[null,null,356,"Malta"]
[null,null,692,"Marshall Islands"]
[null,null,222,"Mauritania"]
[null,null,230,"Mauritius"]
[null,null,262,"Mayotte"]
[null,null,52,"Mexico"]
[null,null,691,"Micronesia"]
[null,null,373,"Moldova"]
[null,null,377,"Monaco"]
[null,null,976,"Mongolia"]
[null,null,382,"Montenegro"]
[null,null,"1-664","Montserrat"]
[6145,"Arabic",212,"Morocco"]
[14348,"French",212,"Morocco"]
[null,null,258,"Mozambique"]
[null,null,null,"MS Zaandam (ship)"]
[null,null,264,"Namibia"]
[null,null,674,"Nauru"]
[null,null,977,"Nepal"]
[null,null,31,"Netherlands"]
[1122,"Frisian Netherlands",599,"Netherlands Antilles"]
[null,null,687,"New Caledonia"]
[5129,"English",64,"New Zealand"]
[null,null,505,"Nicaragua"]
[null,null,227,"Niger"]
[null,null,234,"Nigeria"]
[null,null,683,"Niue"]
[null,null,850,"North Korea"]
[null,null,389,"North Macedonia"]
[null,null,"1-670","Northern Mariana Islands"]
[1044,"Norwegian Bokmol",47,"Norway"]
[2068,"Norwegian Nynorsk",47,"Norway"]
[null,null,968,"Oman"]
[null,null,92,"Pakistan"]
[null,null,680,"Palau"]
[null,null,507,"Panama"]
[null,null,675,"Papua New Guinea"]
[null,null,595,"Paraguay"]
[null,null,51,"Peru"]
[null,null,63,"Philippines"]
[null,null,64,"Pitcairn"]
[null,null,48,"Poland"]
[null,null,351,"Portugal"]
[20490,"Español","1-787","Puerto Rico"]
[20490,"Español","1-939","Puerto Rico"]
[null,null,974,"Qatar"]
[8204,"French",262,"Reunion"]
[null,null,40,"Romania"]
[1049,"Russian",7,"Russia"]
[null,null,250,"Rwanda"]
[null,null,590,"Saint Barthelemy"]
[null,null,290,"Saint Helena"]
[null,null,"1-869","Saint Kitts and Nevis"]
[null,null,"1-758","Saint Lucia"]
[null,null,590,"Saint Martin"]
[null,null,508,"Saint Pierre and Miquelon"]
[null,null,"1-784","Saint Vincent and the Grenadines"]
[null,null,685,"Samoa"]
[null,null,378,"San Marino"]
[null,null,239,"Sao Tome and Principe"]
[null,null,966,"Saudi Arabia"]
[null,null,221,"Senegal"]
[null,null,381,"Serbia"]
[null,null,248,"Seychelles"]
[null,null,232,"Sierra Leone"]
[null,null,65,"Singapore"]
[null,null,"1-721","Sint Maarten"]
[null,null,421,"Slovakia"]
[null,null,386,"Slovenia"]
[null,null,677,"Solomon Islands"]
[null,null,252,"Somalia"]
[null,null,27,"South Africa"]
[null,null,211,"South Sudan"]
[null,null,34,"Spain"]
[null,null,94,"Sri Lanka"]
[null,null,249,"Sudan"]
[null,null,597,"Suriname"]
[null,null,47,"Svalbard and Jan Mayen"]
[null,null,46,"Sweden"]
[null,null,41,"Switzerland"]
[null,null,963,"Syria"]
[null,null,886,"Taiwan"]
[null,null,992,"Tajikistan"]
[null,null,255,"Tanzania"]
[null,null,66,"Thailand"]
[null,null,670,"Timor-Leste"]
[null,null,228,"Togo"]
[null,null,690,"Tokelau"]
[null,null,676,"Tonga"]
[11273,"English","1-868","Trinidad and Tobago"]
[null,null,216,"Tunisia"]
[null,null,90,"Turkey"]
[null,null,993,"Turkmenistan"]
[null,null,"1-649","Turks and Caicos Islands"]
[null,null,688,"Tuvalu"]
[null,null,"1-340","U.S. Virgin Islands"]
[null,null,256,"Uganda"]
[null,null,380,"Ukraine"]
[null,null,971,"United Arab Emirates"]
[null,null,44,"United Kingdom"]
[null,null,598,"Uruguay"]
[1033,"English",1,"US"]
[null,null,998,"Uzbekistan"]
[null,null,678,"Vanuatu"]
[null,null,58,"Venezuela"]
[null,null,84,"Vietnam"]
[null,null,681,"Wallis and Futuna"]
[null,null,970,"West Bank and Gaza"]
[null,null,212,"Western Sahara"]
[null,null,967,"Yemen"]
[null,null,260,"Zambia"]
[null,null,263,"Zimbabwe"]

{"sheet":"Idiomas","index":5,"n_rows":24,"n_cols":3,"rows_kept":24,"cut":false,"hidden":false,"merged":[]}
["Translate - Traducción","English","Español"]
[{"$f":"IFERROR(INDEX($B2:$C2,Idioma_Núm) & \"\",\"\")","v":"1) Clic icono Covid-19 para descargar datos y refrescar todo."},"1) Press Covid-19 icon to download new data and refresh all.","1) Clic icono Covid-19 para descargar datos y refrescar todo."]
[{"$f":"IFERROR(INDEX($B3:$C3,Idioma_Núm) & \"\",\"\")","v":"2) Seleccionar una fecha en la Escala de Tiempo."},"2) Select date on Time Scale.","2) Seleccionar una fecha en la Escala de Tiempo."]
[{"$f":"IFERROR(INDEX($B4:$C4,Idioma_Núm) & \"\",\"\")","v":"3) Elegir todos o algunos Países en la segmentación izquierda."},"3) Choose all or some Countries in the left segmentation.","3) Elegir todos o algunos Países en la segmentación izquierda."]
[{"$f":"IFERROR(INDEX($B5:$C5,Idioma_Núm) & \"\",\"\")","v":"4) Seleccionar Países Rojos en la segmentación derecha."},"4) Select Red Countries in the right segmentation.","4) Seleccionar Países Rojos en la segmentación derecha."]
[{"$f":"IFERROR(INDEX($B6:$C6,Idioma_Núm) & \"\",\"\")","v":"5) Clic en el Gráfico de Barras para Arrancar/Parar la Carrera."},"5) Click on the Bar Chart to Start/Stop the Race.","5) Clic en el Gráfico de Barras para Arrancar/Parar la Carrera."]
[{"$f":"IFERROR(INDEX($B7:$C7,Idioma_Núm) & \"\",\"\")","v":"6) Clic en el título del gráfico para ver datos de la última fecha."},"6) Click on the chart title to see data for the last date.","6) Clic en el título del gráfico para ver datos de la última fecha."]
[{"$f":"IFERROR(INDEX($B8:$C8,Idioma_Núm) & \"\",\"\")","v":"6) Clic en el título del gráfico para ver datos de la última fecha."},"6) Click on the chart title to see data for the last date.","6) Clic en el título del gráfico para ver datos de la última fecha."]
[{"$f":"IFERROR(INDEX($B9:$C9,Idioma_Núm) & \"\",\"\")","v":"6) Clic en el título del gráfico para ver datos de la última fecha."},"6) Click on the chart title to see data for the last date.","6) Clic en el título del gráfico para ver datos de la última fecha."]
[{"$f":"IFERROR(INDEX($B10:$C10,Idioma_Núm) & \"\",\"\")","v":"6) Clic en el título del gráfico para ver datos de la última fecha."},"6) Click on the chart title to see data for the last date.","6) Clic en el título del gráfico para ver datos de la última fecha."]
[{"$f":"IFERROR(INDEX($B11:$C11,Idioma_Núm) & \"\",\"\")","v":"7) Clic en la celda C2 para cambiar Acumulado ∑ o Diario #"},"7) Click on cell C2 to change Accumulated ∑ or Daily #","7) Clic en la celda C2 para cambiar Acumulado ∑ o Diario #"]
[{"$f":"IFERROR(INDEX($B12:$C12,Idioma_Núm) & \"\",\"\")","v":"INSTRUCCIONES"},"INSTRUCTIONS","INSTRUCCIONES"]
[{"$f":"IFERROR(INDEX($B13:$C13,Idioma_Núm) & \"\",\"\")","v":"Fallecimientos Covid-19:"},"Covid-19 Deaths:","Fallecimientos Covid-19:"]
[{"$f":"IFERROR(INDEX($B14:$C14,Idioma_Núm) & \"\",\"\")","v":"Idioma:"},"Language:","Idioma:"]
[{"$f":"IFERROR(INDEX($B15:$C15,Idioma_Núm) & \"\",\"\")","v":"AUTOR:"},"AUTHOR:","AUTOR:"]
[{"$f":"IFERROR(INDEX($B16:$C16,Idioma_Núm) & \"\",\"\")","v":"DATOS:"},"DATA:","DATOS:"]
[{"$f":"IFERROR(INDEX($B17:$C17,Idioma_Núm) & \"\",\"\")","v":"Días"},"Days","Días"]
[{"$f":"IFERROR(INDEX($B18:$C18,Idioma_Núm) & \"\",\"\")","v":"Semanas"},"Weeks","Semanas"]
[{"$f":"IFERROR(INDEX($B19:$C19,Idioma_Núm) & \"\",\"\")","v":"Meses"},"Months","Meses"]
[{"$f":"IFERROR(INDEX($B20:$C20,Idioma_Núm) & \"\",\"\")","v":" Descargando y refrescando datos"},"Downloading and refreshing data"," Descargando y refrescando datos"]
[{"$f":"IFERROR(INDEX($B21:$C21,Idioma_Núm) & \"\",\"\")","v":"← Clic icono del Covid-19 para descargar datos"},"← Click Covid-19 icon to download data","← Clic icono del Covid-19 para descargar datos"]
[{"$f":"IFERROR(INDEX($B22:$C22,Idioma_Núm) & \"\",\"\")","v":"Velocidad de carrera:"},"Race speed:","Velocidad de carrera:"]
[{"$f":"IFERROR(INDEX($B23:$C23,Idioma_Núm) & \"\",\"\")","v":"Período en días:"},"Period in days:","Período en días:"]
[{"$f":"IFERROR(INDEX($B24:$C24,Idioma_Núm) & \"\",\"\")","v":"← Seleccionar continente o lista"},"← Select continent or list","← Seleccionar continente o lista"]